[Event "Sardinia World Festival-A 2024"]
[Site "Orosei"]
[Date "2024.04.30"]
[Round "4.15"]
[White "Van Foreest, Jorden"]
[Black "Kaczmarek, Aleksander"]
[Result "1-0"]
[ECO "B48"]
[WhiteElo "2668"]
[BlackElo "2362"]
[Annotator "TA"]
[PlyCount "71"]
[EventDate "2024.04.26"]
[EventType "swiss"]
[EventCountry "ITA"]
[SourceTitle "playchess.com"]
[Source "ChessBase"]
[SourceQuality "1"]
[TimeControl "40/5400+30:1800+30"]

{[%evp 12,71,41,4,10,20,22,14,49,52,65,0,0,15,37,19,40,52,84,40,67,74,127,79,157,133,172,179,182,189,192,190,198,186,185,138,129,129,148,160,439,441,427,443,437,437,427,418,706,715,693,693,656,654,2316,1434,29972,6283,29970,29975,29985,1273]} 1. e4 {[%emt 0:02:40]} c5 {[%emt 0:00:06]} 2. Nf3 {[%emt 0:00:13]} e6 {[%emt 0:00:06]} 3. d4 {[%emt 0:00:21]} cxd4 {[%emt 0:00:08]} 4. Nxd4 {[%emt 0:00:07]} Nc6 {[%emt 0:00:08]} 5. Nc3 {[%emt 0:00:14]} Qc7 {[%emt 0:00:11]} 6. Be3 {[%emt 0:00:24]} a6 {[%emt 0:00:56]} 7. Nxc6 {[%emt 0:00:12]} bxc6 {[%emt 0:01:51]} 8. Qf3 {[%emt 0:00:11]} Nf6 {[%emt 0:05:37]} 9. Qg3 {[%emt 0:00:13]} d6 {[%emt 0:03:20] The position is equal.} 10. O-O-O {[%emt 0:00:59]} Rb8 {[%emt 0:07:09]} 11. Bc4 {[%emt 0:07:12]} (11. Be2 $14) 11... Rb4 $11 {[%emt 0:03:40]} 12. Bd3 {[%emt 0:00:05]} h5 {[%emt 0:09:06]} 13. f3 {[%emt 0:02:39][%cal Bf2f3,Bf3f4,Bf4f5,Bf5f6][%mdl 32]} Qb8 {[%emt 0:05:01][%cal Oh5h4]} 14. b3 {[%emt 0:00:58]} Qc7 {[%emt 0:02:34]} 15. h4 {[%emt 0:02:47]} Nd7 {[%emt 0:07:08][%cal Bf6d7,Bd7e5,Be5c6][%mdl 32]} 16. Be2 {[%emt 0:00:04]} c5 {[%emt 0:07:19]} (16... g6 $142) 17. Kb2 {[%emt 0:05:36]} (17. Rd2 $142) 17... Rb8 {[%emt 0:02:39]} (17... g6 $142) 18. f4 {[%emt 0:02:25] White has more active pieces.} g6 {[%emt 0:04:55][%cal Od6d5] [#]} 19. f5 $1 {[%emt 0:00:13][%mdl 512]} Ne5 {[%emt 0:01:51]} 20. Rhf1 {[%emt 0:03:31] Strongly threatening Bf4.} Bg7 {[%emt 0:10:08]} 21. f6 $36 {[%emt 0:00:10][%mdl 2048] White is really pushing.} Bf8 {[%emt 0:03:00]} 22. Bf4 {[%emt 0:00:21]} Rb4 {[%emt 0:03:37]} 23. Rd2 {[%emt 0:06:59]} (23. Bxe5 $18 dxe5 24. Bc4) 23... Rd4 $16 {[%emt 0:00:16]} 24. Rfd1 {[%emt 0:00:03]} Nc6 {[%emt 0:02:51]} 25. Be3 {[%emt 0:00:36]} Bh6 $2 {[%emt 0:02:30] [#]} (25... Qd8 $16 {was called for.}) 26. Bxh6 $1 $18 {[%emt 0:04:30]} Rxh6 {[%emt 0:00:04] [#]} 27. Bb5 $1 {[%emt 0:02:14][%mdl 512]} axb5 {[%emt 0:01:55]} 28. Nxb5 {[%emt 0:00:07]} Qb8 {[%emt 0:06:08]} 29. Nxd6+ {[%emt 0:00:28]} (29. Nxd4 cxd4 30. c3 e5 $14) 29... Kf8 {[%emt 0:03:45]} (29... Kd7 $142) 30. Qg5 {[%emt 0:01:00]} Qxd6 {[%emt 0:00:30]} 31. Qxh6+ {[%emt 0:00:05]} Ke8 {[%emt 0:00:04]} 32. c3 {[%emt 0:00:01]} Qe5 {[%emt 0:04:03]} 33. cxd4 {[%emt 0:00:16]} Nxd4 {[%emt 0:01:17]} 34. Qh8+ {[%emt 0:00:15]} Kd7 {[%emt 0:00:03]} 35. Qf8 {[%emt 0:00:09]} Ba6 {[%emt 0:01:14] [#]} 36. Qxc5 {[%emt 0:01:54] Weighted Error Value: White=0.12 (very precise) /Black=0.54.  Loses game:     	---       	Black=1      Mistake:       	White=3     	Black=3      Inaccurate:     	White=1     	Black=3      OK:         	White=6     	Black=6      Best:        	White=1     	Black=2      Strong:       	White=1     	---        Brilliant:      	White=2     	---} 1-0

[Event "Sardinia World Festival-A 2024"]
[Site "Orosei"]
[Date "2024.04.30"]
[Round "4.16"]
[White "Piscopo, Pierluigi"]
[Black "Murzin, Volodar"]
[Result "0-1"]
[ECO "B84"]
[WhiteElo "2312"]
[BlackElo "2632"]
[Annotator "TA"]
[PlyCount "56"]
[EventDate "2024.04.26"]
[EventType "swiss"]
[EventCountry "ITA"]
[SourceTitle "playchess.com"]
[Source "ChessBase"]
[SourceQuality "1"]
[TimeControl "40/5400+30:1800+30"]

{[%evp 18,56,0,0,0,0,0,0,0,0,0,-113,-126,-112,-111,-120,-117,-133,-179,-165,-152,-142,-142,-317,-323,-313,-327,-300,-295,-395,-385,-372,-361,-362,-437,-433,-442,-431,-410,-689,-686]} 1. e4 {[%emt 0:00:04]} c5 {[%emt 0:05:03]} 2. Nf3 {[%emt 0:00:14]} d6 {[%emt 0:00:12]} 3. d4 {[%emt 0:01:27]} cxd4 {[%emt 0:00:05]} 4. Nxd4 {[%emt 0:00:07]} Nf6 {[%emt 0:00:05]} 5. Nc3 {[%emt 0:00:08]} a6 {[%emt 0:00:04]} 6. Be2 {[%emt 0:00:19]} e6 {[%emt 0:00:11]} 7. O-O {[%emt 0:03:18]} Be7 {[%emt 0:00:46]} 8. f4 {[%emt 0:01:32]} Qc7 {[%emt 0:00:17]} 9. Kh1 {[%emt 0:01:09]} O-O {[%emt 0:00:26]} 10. g4 {[%emt 0:04:14][%cal Bg2g4,Bg4g5][%mdl 32]} b5 {[%emt 0:00:56]} 11. g5 {[%emt 0:00:57]} Nfd7 {[%emt 0:00:10]} 12. a3 {[%emt 0:14:57]} Bb7 {[%emt 0:08:52] The position is equal.} 13. f5 {[%emt 0:07:30]} Nc6 {[%emt 0:00:23]} 14. f6 {[%emt 0:08:34]} (14. fxe6 $11 {remains equal.} Nxd4 15. exf7+ Rxf7 16. Rxf7 Nxe2 17. Rxe7 Nxc3 18. bxc3) 14... gxf6 $17 {[%emt 0:17:11]} 15. gxf6 {[%emt 0:05:02]} Bxf6 {[%emt 0:00:47]} 16. Bh6 {[%emt 0:08:10] [#]} Kh8 $1 {[%emt 0:00:58]} 17. Ndxb5 {[%emt 0:20:03]} (17. Bxf8 Rxf8) 17... axb5 {[%emt 0:00:53]} 18. Nxb5 {[%emt 0:00:02]} Qb6 {[%emt 0:09:01]} 19. Nxd6 {[%emt 0:03:51] Hoping for Rxf6.} Nce5 {[%emt 0:04:31] ...Rg8 is the strong threat.} 20. Rxf6 $2 {[%emt 0:02:56] [#]} (20. Nxb7 $17 {might work better.} Qxb7 21. Bxf8 Rxf8 22. Qd4) 20... Nxf6 $19 {[%emt 0:05:47] Excellent horsemanship.} 21. Qg1 {[%emt 0:00:09]} Qxg1+ {[%emt 0:06:38]} (21... Qxd6 22. Qg7#) (21... Bxe4+ 22. Nxe4 Qxg1+ 23. Rxg1 $16) 22. Rxg1 {[%emt 0:00:08]} Rg8 {[%emt 0:02:42] Dodges Bg7+} ({Weaker is} 22... Bxe4+ 23. Nxe4 $16) 23. Nxb7 {[%emt 0:01:13]} Nfg4 {[%emt 0:08:44]} (23... Nxe4 24. Be3 Rab8 25. Rxg8+ Kxg8 26. Ba6 $19) 24. Bxg4 {[%emt 0:00:29]} Nxg4 {[%emt 0:00:18]} 25. Rxg4 {[%emt 0:00:08]} Rxg4 {[%emt 0:00:03]} 26. Nd6 {[%emt 0:00:06]} Ra6 {[%emt 0:05:28]} 27. e5 {[%emt 0:05:28]} Kg8 {[%emt 0:01:40]} 28. c4 {[%emt 0:00:24]} (28. h3 $142 Rd4 29. Kg2) 28... Ra5 {[%emt 0:22:19] Black took control after the opening.   Weighted Error Value: White=0.50/Black=0.02 (flawless) .  Loses game:     	White=1     	---        Mistake:       	White=2     	---        Inaccurate:     	White=1     	---        OK:         	White=4     	Black=10     Best:        	White=2     	Black=2} 0-1

[Event "Sardinia World Festival-A 2024"]
[Site "Orosei"]
[Date "2024.04.30"]
[Round "4.17"]
[White "Sivuk, Vitaly"]
[Black "Vagman, Roy"]
[Result "1-0"]
[ECO "D35"]
[WhiteElo "2551"]
[BlackElo "2357"]
[Annotator "TA"]
[PlyCount "105"]
[EventDate "2024.04.26"]
[EventType "swiss"]
[EventCountry "ITA"]
[SourceTitle "playchess.com"]
[Source "ChessBase"]
[SourceQuality "1"]
[TimeControl "40/5400+30:1800+30"]

{[%evp 12,105,33,30,41,32,76,20,24,23,15,18,23,0,0,0,8,0,0,0,0,0,36,28,50,18,26,20,37,43,61,56,82,75,69,58,71,81,75,70,106,91,94,106,108,93,114,84,94,97,120,120,158,158,585,573,636,618,1016,1021,2066,2006,1768,848,844,943,958,965,885,1116,1073,1147,956,910,29972,29975,29972,29976,29976,29977,29977,29978,29978,29979,29980,29981,29981,29982,29982,29983,29983,29984,29985,29986,29986,29987]} 1. d4 {[%emt 0:00:05]} Nf6 {[%emt 0:00:12]} 2. c4 {[%emt 0:00:10]} e6 {[%emt 0:00:09]} 3. Nc3 {[%emt 0:00:08]} d5 {[%emt 0:00:12]} 4. cxd5 {[%emt 0:00:12]} exd5 {[%emt 0:00:08]} 5. Bg5 {[%emt 0:00:07][%cal Bc1g5,Bg5h4,Bh4g3][%mdl 32]} Bb4 {[%emt 0:00:12]} 6. e3 {[%emt 0:00:14]} h6 {[%emt 0:00:09]} 7. Bh4 $1 {[%emt 0:00:34]} g5 {[%emt 1:32:58]} 8. Bg3 {[%emt 0:00:07]} Ne4 {[%emt 0:00:00]} 9. Qc2 {[%emt 0:00:12]} ({White should play} 9. Nge2 $16) 9... Nc6 {[%emt 0:00:00] The position is equal.} 10. Bd3 {[%emt 0:01:36]} Bf5 {[%emt 0:00:00]} 11. Nge2 {[%emt 0:01:01]} Nxg3 {[%emt 0:00:00]} 12. Nxg3 {[%emt 0:07:27]} Bxd3 {[%emt 0:00:00]} 13. Qxd3 {[%emt 0:00:07]} Qd7 {[%emt 0:00:00]} 14. h4 {[%emt 0:08:15] Black must now prevent hxg5.} O-O-O {[%emt 0:00:00]} 15. Qf5 {[%emt 0:01:45]} Qxf5 {[%emt 0:00:00]} 16. Nxf5 {[%emt 0:00:08]} Bxc3+ {[%emt 0:00:00]} 17. bxc3 {[%emt 0:00:42]} Kd7 {[%emt 0:00:00]} 18. g4 {[%emt 0:03:35]} Ne7 {[%emt 0:00:00]} 19. Ng3 {[%emt 0:00:21]} Ng6 {[%emt 0:00:00]} 20. h5 {[%emt 0:01:33]} Ne7 {[%emt 0:00:00]} 21. f3 {[%emt 0:00:15]} Rc8 {[%emt 0:00:00]} 22. Kd2 {[%emt 0:03:28]} c5 {[%emt 0:00:00]} 23. Rhb1 {[%emt 0:00:48]} b6 {[%emt 0:00:00]} 24. a4 {[%emt 0:00:40]} cxd4 {[%emt 0:00:00]} 25. cxd4 {[%emt 0:01:31]} Rc6 {[%emt 0:00:57]} 26. a5 {[%emt 0:01:30]} Rhc8 {[%emt 0:00:51]} 27. axb6 {[%emt 0:03:21]} axb6 {[%emt 0:00:02]} 28. Ra2 {[%emt 0:00:26] Against Rc2+} R8c7 {[%emt 0:01:20]} 29. Rb5 {[%emt 0:01:27]} Rf6 {[%emt 0:02:25]} 30. Ke2 {[%emt 0:01:11]} Kc6 {[%emt 0:00:46]} 31. Rab2 {[%emt 0:02:18] White is more active.} Kb7 {[%emt 0:00:10]} 32. e4 {[%emt 0:06:46][%cal Be3e4,Be4d5,Bd5d6][%mdl 32]} Rc3 $2 {[%emt 0:02:08] This move loses the game for Black.} (32... Re6 $16 33. Kd3 Rd7) 33. exd5 $18 {[%emt 0:06:42] Strongly threatening Ne4.} Nc8 {[%emt 0:03:34]} 34. Ne4 {[%emt 0:03:31][%csl LRc3,LRf6]} Rcxf3 {[%emt 0:00:22] [#]} 35. d6 $1 {[%emt 0:07:05][%mdl 512]} Kc6 {[%emt 0:00:06]} (35... Rf2+ 36. Nxf2) 36. Rc2+ {[%emt 0:10:19]} Kd7 {[%emt 0:00:03]} 37. Nxf6+ {[%emt 0:03:19]} (37. Rxc8 $142 Kxc8 38. Rxb6 (38. Nxf6 Rxf6 39. Rxb6 Rf4 $11)) 37... Rxf6 {[%emt 0:00:01][%mdl 4096] Endgame. KRR-KRN} 38. Rc7+ {[%emt 0:00:19]} Kd8 {[%emt 0:00:05]} 39. Rd5 {[%emt 0:00:19]} (39. Rc6 Na7 40. Rcxb6 (40. Rbxb6 Nxc6 41. Rxc6 Rf4 $11) 40... Nxb5 41. Rxb5 Rxd6 $15) 39... Nxd6 {[%emt 0:02:15]} 40. Rc6 {[%emt 0:00:53]} Ke7 {[%emt 0:00:41]} 41. Rxb6 {[%emt 0:30:49]} Re6+ {[%emt 0:03:47]} 42. Kd3 {[%emt 0:00:00][%cal Od5d6] Threatening mate with Rdxd6!} Rf6 {[%emt 0:20:54] [#]} 43. Rdxd6 $1 {[%emt 0:00:00][%mdl 512] White mates.} Rxd6 {[%emt 0:00:15]} 44. Rxd6 {[%emt 0:00:00]} Kxd6 {[%emt 0:00:05] K3P-K3P} 45. Ke4 {[%emt 0:00:00]} Ke6 {[%emt 0:02:13]} 46. d5+ {[%emt 0:00:00]} Kd6 {[%emt 0:03:23]} 47. Kd4 {[%emt 0:00:00]} f6 {[%emt 0:02:13]} 48. Ke4 {[%emt 0:00:00]} Kc5 {[%emt 0:00:50]} 49. Kf5 {[%emt 0:00:00]} Kxd5 {[%emt 0:00:04]} 50. Kxf6 {[%emt 0:00:00]} Ke4 {[%emt 0:00:34]} 51. Kg6 {[%emt 0:00:00]} Kf4 {[%emt 0:00:49]} 52. Kxh6 {[%emt 0:00:00]} Kxg4 {[%emt 0:00:02]} 53. Kg6 {[%emt 0:00:00] Weighted Error Value: White=0.06 (flawless) /Black=0.48.  Loses game:     	---       	Black=1      Mistake:       	White=1     	---        Inaccurate:     	White=1     	Black=5      OK:         	White=12    	Black=9      Best:        	White=5     	Black=1} 1-0

[Event "Sardinia World Festival-A 2024"]
[Site "Orosei"]
[Date "2024.04.30"]
[Round "4.18"]
[White "Bettalli, Francesco"]
[Black "Sokolovsky, Yahli"]
[Result "0-1"]
[ECO "C45"]
[WhiteElo "2309"]
[BlackElo "2490"]
[Annotator "TA"]
[PlyCount "177"]
[EventDate "2024.04.26"]
[EventType "swiss"]
[EventCountry "ITA"]
[SourceTitle "playchess.com"]
[Source "ChessBase"]
[SourceQuality "1"]
[TimeControl "40/5400+30:1800+30"]

{[%evp 14,177,24,30,20,20,25,14,16,12,75,8,25,11,15,14,14,18,21,11,25,3,10,11,8,0,0,0,0,0,0,0,0,0,0,-5,0,0,-9,-14,-18,-29,-31,-27,-31,-71,0,-51,-59,-55,-32,-39,-30,-30,-30,-30,-30,-65,-43,-81,-33,-52,-22,-35,-13,-10,0,0,0,0,0,-107,-133,-110,-113,-125,-119,-117,-131,-124,-136,-143,-117,-172,-108,-110,-97,-91,-93,-101,-93,-101,-101,-121,-101,-116,-112,-118,-118,-118,0,-118,-118,-118,-111,-111,-111,-226,0,-85,0,-111,-111,-111,-111,-260,-256,-580,-532,-475,-211,-370,-227,-367,-141,-209,-75,-61,-69,-152,-152,-152,-152,-152,-23,-29,-21,-20,-20,-23,0,-25,0,-20,-20,-20,-13,-432,-369,-475,-470,-2343,-2141,-2326,-2315,-1730,-1912,-11964,-4602,-29973,-29975,-29975,-29974,-29974,-29974,-29981]} 1. e4 {[%emt 0:00:08]} e5 {[%emt 0:00:04]} 2. Nf3 {[%emt 0:00:07]} Nc6 {[%emt 0:00:03]} 3. d4 {[%emt 0:00:10]} exd4 {[%emt 0:00:05]} 4. Nxd4 {[%emt 0:00:06]} Bc5 {[%emt 0:00:09]} 5. Nb3 {[%emt 0:00:35]} Bb6 {[%emt 0:00:07]} 6. Nc3 {[%emt 0:00:13]} Qf6 {[%emt 0:01:59]} 7. Qe2 {[%emt 0:03:46]} Nge7 {[%emt 0:00:08]} 8. Be3 {[%emt 0:01:24]} d6 {[%emt 0:00:08]} 9. O-O-O {[%emt 0:03:29]} Bd7 {[%emt 0:01:10]} 10. g3 {[%emt 0:08:17]} Bxe3+ {[%emt 0:15:29] The position is equal.} 11. Qxe3 {[%emt 0:00:07]} Bg4 {[%emt 0:00:16]} (11... O-O-O $11) 12. Be2 {[%emt 0:01:44]} ({White should try} 12. Nd5 $1 $16 {[%cal Rd5f6]} Nxd5 13. exd5+ Ne7 (13... Ne5 14. f4 $16) 14. Rd4) 12... Bxe2 $11 {[%emt 0:00:49]} 13. Qxe2 {[%emt 0:00:12]} O-O-O {[%emt 0:02:04]} 14. f4 {[%emt 0:04:41]} Kb8 {[%emt 0:07:09]} 15. Rhe1 {[%emt 0:05:01]} Rhe8 {[%emt 0:00:19]} 16. Kb1 {[%emt 0:06:27]} Qg6 {[%emt 0:01:10]} 17. Qf3 {[%emt 0:03:35]} f5 {[%emt 0:14:53]} 18. exf5 {[%emt 0:03:20]} Qxf5 {[%emt 0:00:22]} 19. Qe4 {[%emt 0:09:26]} h6 {[%emt 0:06:07]} 20. Qxf5 {[%emt 0:02:18]} Nxf5 {[%emt 0:02:22]} 21. Nd5 {[%emt 0:00:26]} Ncd4 {[%emt 0:07:09]} 22. Nxd4 {[%emt 0:02:41]} Nxd4 {[%emt 0:01:03]} 23. Rf1 {[%emt 0:00:27]} Nf5 {[%emt 0:01:36]} 24. g4 {[%emt 0:02:58]} Ne3 {[%emt 0:01:28]} 25. Nxe3 {[%emt 0:00:04]} Rxe3 {[%emt 0:00:07][%mdl 4096] Endgame. KRR-KRR} 26. Rd2 {[%emt 0:02:25]} Rde8 {[%emt 0:03:31]} 27. c3 {[%emt 0:00:08]} Kc8 {[%emt 0:02:12]} 28. Kc2 {[%emt 0:01:44]} Kd7 {[%emt 0:00:08]} 29. Rd3 {[%emt 0:04:08]} Re1 {[%emt 0:02:21]} (29... Re2+ $17 30. Rd2 R8e3) 30. Rff3 {[%emt 0:15:25]} (30. Rxe1 $11 Rxe1 31. Rd1) 30... Rg1 {[%emt 0:04:19]} 31. h3 {[%emt 0:01:08]} Re2+ {[%emt 0:02:06]} 32. Rd2 {[%emt 0:00:04]} Rxd2+ {[%emt 0:00:15]} 33. Kxd2 $15 {[%emt 0:00:02] KR-KR} Rg2+ {[%emt 0:00:13]} 34. Kc1 {[%emt 0:00:14]} Re2 {[%emt 0:08:56]} 35. Rg3 {[%emt 0:13:32]} Ke6 {[%emt 0:01:50] Black is more active.} 36. a3 {[%emt 0:03:18]} d5 {[%emt 0:03:24]} ({Black should play} 36... Rf2 $17 37. f5+ Kf7) 37. f5+ {[%emt 0:02:58]} Kf6 {[%emt 0:00:46]} 38. Rd3 {[%emt 0:00:19]} Ke5 {[%emt 0:01:26]} 39. b4 {[%emt 0:00:41]} a6 {[%emt 0:08:34]} 40. a4 {[%emt 0:01:53]} b6 {[%emt 0:02:48]} 41. Kd1 {[%emt 0:30:34]} Re4 {[%emt 0:02:30] White must now prevent ...a5.} 42. Rf3 {[%emt 0:00:00]} (42. a5 $1 $11) 42... a5 $17 {[%emt 0:12:09]} 43. bxa5 {[%emt 0:00:00]} bxa5 {[%emt 0:00:08]} (43... Rxa4 44. Re3+ Kf4 45. Re7 $14) 44. f6 {[%emt 0:00:00]} gxf6 {[%emt 0:00:07]} 45. Rf5+ {[%emt 0:00:00]} Ke6 {[%emt 0:00:11]} 46. Rh5 {[%emt 0:00:00]} Rxa4 {[%emt 0:00:50]} 47. Rxh6 {[%emt 0:00:00]} Ke5 {[%emt 0:01:31]} 48. Kc2 {[%emt 0:00:00]} (48. Rh5+ $17 Ke6 (48... Ke4 49. Rf5 $11) 49. Kc2) 48... Rc4 {[%emt 0:02:20]} (48... Ra2+ $19 49. Kb3 Rg2) 49. Kd3 {[%emt 0:00:00]} a4 {[%emt 0:03:33]} 50. Rh5+ {[%emt 0:00:00]} Ke6 {[%emt 0:00:14]} 51. Rh8 {[%emt 0:00:00]} Rf4 {[%emt 0:00:17]} 52. Ke2 {[%emt 0:00:00] Inhibits Rf3.} Kd6 {[%emt 0:01:01]} 53. Ra8 {[%emt 0:00:00]} c6 {[%emt 0:00:56]} 54. Ra7 {[%emt 0:00:00]} Kc5 {[%emt 0:01:47]} 55. Ra8 {[%emt 0:00:00]} Kb5 {[%emt 0:01:21]} 56. Rb8+ {[%emt 0:00:00]} Kc5 {[%emt 0:00:01]} 57. Ra8 {[%emt 0:00:00]} Re4+ {[%emt 0:02:05]} 58. Kd2 {[%emt 0:00:00]} Kb5 {[%emt 0:00:07]} 59. Rb8+ {[%emt 0:00:00]} Kc4 {[%emt 0:00:11] Strongly threatening ...c5.} 60. Ra8 {[%emt 0:00:17]} (60. Rb4+ $17 Kc5 61. Rb8) 60... Kb5 {[%emt 0:00:19]} (60... Kb3 $19 61. Ra6 Rc4) 61. Rb8+ $1 {[%emt 0:00:24]} Kc5 {[%emt 0:00:05]} 62. Ra8 {[%emt 0:00:47]} Kb6 {[%emt 0:00:01]} 63. Rf8 {[%emt 0:03:15]} Rf4 {[%emt 0:02:40]} 64. Ke2 {[%emt 0:00:04] [#] Dodges Rf2+} (64. Rb8+ $17 {was called for.} Ka7 65. Rb1) 64... c5 $1 $19 {[%emt 0:02:39]} 65. Rd8 $2 {[%emt 0:00:47]} (65. Rb8+ Ka5 66. Ke3) 65... Kb5 {[%emt 0:03:58]} 66. Ra8 {[%emt 0:01:57]} Re4+ {[%emt 0:01:22]} (66... d4 $142 67. cxd4 Rxd4) 67. Kd2 $2 {[%emt 0:00:01]} (67. Kd3) 67... Re6 {[%emt 0:00:05]} 68. Rb8+ {[%emt 0:04:01]} (68. Kd3 $142) 68... Ka5 $2 {[%emt 0:00:31]} (68... Kc4 $19 {is more deadly. ...Ra6 is the strong threat.} 69. Ra8 Kb3 70. Rb8+ Ka2 (70... Kc4 $2 71. Ra8 $19)) 69. c4 {[%emt 0:01:54] [#]} (69. Rd8 $17 {is the only way for White.}) 69... dxc4 {[%emt 0:00:46]} (69... d4 $1 $19 {has better winning chances.} 70. Rb5+ Ka6 71. Rxc5 a3) 70. Kc3 $17 {[%emt 0:00:34]} Re4 {[%emt 0:01:02]} 71. Ra8+ {[%emt 0:00:45]} (71. Rf8 $1 $15) 71... Kb5 {[%emt 0:00:01]} 72. Rb8+ {[%emt 0:00:21]} Kc6 {[%emt 0:00:01] And now ...a3 would win.} 73. Ra8 {[%emt 0:00:44]} Rf4 {[%emt 0:02:01]} ({Better is} 73... Kd5 $17 {...Re3+ would now be deadly.} 74. Rd8+ Ke5) 74. Rc8+ $11 {[%emt 0:00:39]} Kd5 {[%emt 0:00:44] Hoping for ...Rf3+.} 75. Rd8+ {[%emt 0:00:01]} Ke5 {[%emt 0:00:13]} 76. Re8+ {[%emt 0:00:08]} Kd5 {[%emt 0:00:14]} 77. Rd8+ {[%emt 0:00:01]} Kc6 {[%emt 0:01:11] Threatens to win with ...a3.} 78. Rc8+ {[%emt 0:00:03]} Kd6 {[%emt 0:00:07]} 79. Rd8+ $1 {[%emt 0:00:19]} Ke6 {[%emt 0:00:09] aiming for ...Rf3+.} 80. Rc8 $2 {[%emt 0:00:26][%mdl 8192]} (80. Re8+ $11 {and White is okay.} Kd7 81. Ra8) 80... Rf3+ $19 {[%emt 0:00:26]} 81. Kxc4 {[%emt 0:00:05]} Rxh3 {[%emt 0:00:04]} 82. Rxc5 {[%emt 0:02:30]} (82. Re8+ $142 Kf7 83. Re4) 82... Rg3 {[%emt 0:00:30]} 83. Ra5 {[%emt 0:00:03]} Rxg4+ {[%emt 0:00:06]} 84. Kd3 {[%emt 0:00:05] [#]} a3 $1 {[%emt 0:01:40]} 85. Ke3 {[%emt 0:00:21]} (85. Ra6+ Kf5) 85... Rg1 {[%emt 0:00:23] ( -> ...Ra1)} 86. Kf4 {[%emt 0:01:23]} Ra1 {[%emt 0:00:14] Black mates.} 87. Ra6+ {[%emt 0:00:04]} Ke7 {[%emt 0:00:17]} 88. Ra7+ {[%emt 0:00:45]} Kd8 {[%emt 0:00:21]} 89. Ke4 {[%emt 0:02:01] Weighted Error Value: White=0.15 (very precise) /Black=0.17 (very precise) .  Loses game:     	White=1     	---        Missed win:     	---       	Black=1      Mistake:       	White=12    	Black=8      Inaccurate:     	White=3     	Black=2      OK:         	White=22    	Black=17     Best:        	White=14    	Black=8      Strong:       	White=2     	Black=1} 0-1